bitfinex/quotes_BTCUSD_20241124
["timestamp","ask_amount","ask_price","bid_price","bid_amount"]
[1732406887109,0.0484,97566.0,97557.0,0.15]
[1732406887318,0.0484,97566.0,97565.0,0.15]
[1732406887528,0.0484,97566.0,97565.0,0.55525612]
[1732406887821,0.22605052,97566.0,97565.0,0.15]
[1732406888037,0.24905052,97566.0,97565.0,0.15]
[1732406888492,0.023,97565.0,97557.0,0.15]
[1732406888931,0.023,97565.0,97564.0,0.40502598]
[1732406889186,0.023,97565.0,97564.0,0.55502598]
[1732406889407,0.023,97565.0,97564.0,0.15]
[1732406890062,0.20193172,97565.0,97564.0,0.15]
[1732406890339,0.32715052,97565.0,97564.0,0.15]
[1732406890570,0.32715052,97565.0,97556.0,0.04096671]
[1732406890571,0.17765052,97559.0,97558.0,0.55502598]
[1732406890808,0.20057239,97559.0,97558.0,0.15]
[1732406891056,0.25256206,97559.0,97558.0,0.15]
[1732406891289,0.023,97558.0,97557.0,0.15]
[1732406891808,0.0781,97565.0,97557.0,0.15]
[1732406892057,0.00358966,97558.0,97557.0,0.55427413]
[1732406892289,0.0781,97565.0,97545.0,0.39852368]
[1732406892290,0.0781,97565.0,97558.0,0.15]
[1732406892745,0.0781,97565.0,97564.0,0.40419081]
[1732406892957,0.0484,97569.0,97564.0,0.40419081]
[1732406893188,0.0484,97569.0,97567.0,0.19065175]
[1732406893424,0.0484,97569.0,97564.0,0.27371353]
[1732406893637,0.0484,97569.0,97563.0,0.27371353]
[1732406893846,0.0484,97569.0,97565.0,0.27371353]
[1732406894057,0.0501178,97569.0,97565.0,0.27371353]
[1732406894479,0.023,97568.0,97564.0,0.27371353]
[1732406895149,0.023,97568.0,97565.0,0.27371353]
[1732406895607,0.023,97568.0,97564.0,0.27371353]
[1732406896269,0.023,97568.0,97564.0,0.15]
[1732406897145,0.023,97568.0,97564.0,0.42371353]
[1732406897781,0.023,97568.0,97565.0,0.15]
[1732406899041,0.023,97568.0,97563.0,0.27371353]
[1732406899042,0.023,97568.0,97564.0,0.15]
[1732406899988,0.023,97568.0,97563.0,0.15]
[1732406900930,0.023,97568.0,97563.0,0.42371353]
[1732406901161,0.023,97568.0,97563.0,0.46447592]
[1732406901658,0.023,97568.0,97563.0,0.19076239]
[1732406901880,0.023,97568.0,97563.0,0.46447592]
[1732406902110,0.023,97568.0,97567.0,0.15]
[1732406902566,0.023,97568.0,97565.0,0.15]
[1732406902783,0.023,97568.0,97567.0,0.15]
[1732406903007,0.023,97568.0,97565.0,0.15]
[1732406903932,0.023,97568.0,97563.0,0.04076239]
[1732406904149,0.023,97568.0,97559.0,0.15]
[1732406904405,0.023,97568.0,97560.0,0.10201427]
[1732406904632,0.0017178,97569.0,97561.0,0.2744]
[1732406904851,0.0017178,97569.0,97563.0,0.15]
[1732406905082,0.0017178,97569.0,97565.0,0.15]
[1732406905270,0.0017178,97569.0,97566.0,0.45991427]
[1732406905536,0.0017178,97569.0,97567.0,0.2744]
[1732406905768,0.0017178,97569.0,97568.0,0.10201427]
[1732406905988,0.0017178,97569.0,97568.0,0.25201427]
[1732406908690,0.0017178,97569.0,97568.0,0.27960687]
[1732406911149,0.0017178,97569.0,97568.0,0.3209653]
[1732406914200,0.023,97589.0,97571.0,0.15]
[1732406914425,0.0008577,97594.0,97579.0,0.17242761]
[1732406914634,0.0008577,97594.0,97580.0,0.1584677]
[1732406914900,0.0008577,97594.0,97581.0,0.65471889]
[1732406915550,0.0008577,97594.0,97587.0,0.15]
[1732406915753,0.0008577,97594.0,97588.0,0.45991427]
[1732406915970,0.0008577,97594.0,97589.0,0.15]
[1732406916239,0.0008577,97594.0,97589.0,0.25201427]
[1732406917432,0.0008577,97594.0,97589.0,0.29248016]
[1732406918053,0.1222,97599.0,97589.0,0.29248016]
[1732406918277,0.1222,97599.0,97591.0,0.15]
[1732406918278,0.101634,97599.0,97591.0,0.15]
[1732406918482,0.101634,97599.0,97593.0,0.15]
[1732406920420,0.023,97598.0,97593.0,0.15]
[1732406923903,0.0767,97599.0,97594.0,0.15]
[1732406924300,0.023,97598.0,97594.0,0.15]
[1732406926014,0.0455,97605.0,97594.0,0.15]
[1732406926015,0.0993,97604.0,97594.0,0.15]
[1732406926417,0.0993,97604.0,97596.0,0.15]
[1732406926835,0.00958983,97599.0,97596.0,0.15]
[1732406930112,0.00958983,97599.0,97590.0,0.27263009]
[1732406930113,0.023,97598.0,97591.0,0.15]
[1732406930319,0.023,97596.0,97590.0,0.15]
[1732406930531,0.023,97596.0,97589.0,0.15]
[1732406930753,0.023,97596.0,97589.0,0.25201427]
[1732406931735,0.023,97596.0,97589.0,0.52464436]
[1732406931941,0.023,97596.0,97590.0,0.27263009]
[1732406932147,0.023,97596.0,97591.0,0.15]
[1732406932569,0.023,97596.0,97592.0,0.15]
[1732406932820,0.0017168,97599.0,97592.0,0.28010329]
[1732406933025,0.0017168,97599.0,97592.0,0.55273338]
[1732406933861,0.0017168,97599.0,97594.0,0.15]
[1732406934063,0.0017168,97599.0,97596.0,0.15]
[1732406936270,0.0017168,97599.0,97596.0,0.42263009]
[1732406936931,0.0017168,97599.0,97598.0,0.15]
[1732406937159,0.0247168,97599.0,97598.0,0.15]
[1732406937368,0.0247168,97599.0,97598.0,0.42263009]
[1732406938479,0.023,97598.0,97596.0,0.15]
[1732406940166,0.0007168,97599.0,97598.0,0.15]
[1732406940876,0.0007168,97599.0,97598.0,0.42301613]
[1732406941110,0.0007168,97599.0,97598.0,0.15]
[1732406941330,0.01031033,97599.0,97596.0,0.15]
[1732406941553,0.01031033,97599.0,97598.0,0.15]
[1732406941771,0.0007168,97599.0,97598.0,0.15]
[1732406943522,0.0007168,97599.0,97598.0,0.553234]
[1732406945565,0.0007168,97599.0,97598.0,0.15]
[1732406946086,0.01032278,97599.0,97598.0,0.19051836]
[1732406946321,0.00895248,97599.0,97598.0,0.19051836]
[1732406948652,0.00801448,97599.0,97598.0,0.19051836]
[1732406948879,0.00777628,97599.0,97598.0,0.19051836]
[1732406951252,0.00777628,97599.0,97598.0,0.04051836]
[1732406951488,0.13537628,97599.0,97598.0,0.04051836]
[1732406951730,0.13537628,97599.0,97596.0,0.0017168]
[1732406952721,0.13537628,97599.0,97596.0,0.04313256]
[1732406956629,0.13623468,97599.0,97596.0,0.19313256]
[1732406957613,0.13623468,97599.0,97596.0,0.50128562]
[1732406957854,0.13623468,97599.0,97596.0,0.04313256]
[1732406958342,0.1284584,97599.0,97596.0,0.04313256]
[1732406958817,0.1284584,97599.0,97598.0,0.30822855]
[1732406959056,0.1284584,97599.0,97598.0,0.45822855]
[1732406960020,0.1284584,97599.0,97598.0,0.15]
[1732406960245,0.1284584,97599.0,97598.0,0.30832105]
[1732406960478,0.13776286,97599.0,97598.0,0.45832105]
[1732406960719,0.1284584,97599.0,97598.0,0.45832105]
[1732406961403,0.1284584,97599.0,97598.0,0.15]
[1732406961638,0.1284584,97599.0,97597.0,0.15]
[1732406961867,0.125,97598.0,97597.0,0.15]
[1732406962584,0.125,97598.0,97596.0,0.19313256]
[1732406963032,0.125,97598.0,97596.0,0.50145361]
[1732406963726,0.125,97598.0,97596.0,0.04313256]
[1732406964897,0.00930444,97597.0,97596.0,0.35145361]
[1732406965157,0.00930444,97597.0,97596.0,0.19313256]
[1732406965402,0.125,97598.0,97597.0,0.15]
[1732406965853,0.13429823,97598.0,97597.0,0.15]
[1732406966083,0.15729823,97598.0,97597.0,0.15]
[1732406966342,0.023,97597.0,97596.0,0.04313256]
[1732406966569,0.1453,97597.0,97596.0,0.04313256]
[1732406966801,0.15459823,97597.0,97596.0,0.04313256]
[1732406967737,0.13159823,97597.0,97596.0,0.04313256]
[1732406967967,0.0008584,97599.0,97596.0,0.04313256]
[1732406968199,0.0008584,97599.0,97598.0,0.45817842]
[1732406968431,0.0008584,97599.0,97598.0,0.15]
[1732406968671,0.0008584,97599.0,97598.0,0.25201427]
[1732406971422,0.0008584,97599.0,97598.0,0.27609983]
[1732406975620,0.0008586,97614.0,97598.0,0.27609983]
[1732406975828,0.0008586,97614.0,97611.0,0.15]
[1732406976050,0.0008586,97614.0,97613.0,0.15]
[1732406976727,0.0008586,97614.0,97613.0,0.17299257]
[1732406977200,0.0008586,97614.0,97613.0,0.15]
[1732406978528,0.0008586,97614.0,97613.0,0.19129122]
[1732406979594,0.0470586,97614.0,97613.0,0.19129122]
[1732406983895,0.0470586,97614.0,97612.0,0.30810074]
[1732406984583,0.0470586,97614.0,97612.0,0.34974334]
[1732406985677,0.0785,97613.0,97612.0,0.34974334]
[1732406985938,0.13654539,97613.0,97612.0,0.49974334]
[1732406990339,0.13740379,97613.0,97612.0,0.49974334]
[1732406991894,0.12670624,97613.0,97612.0,0.49974334]
[1732406993461,0.14970624,97613.0,97612.0,0.49974334]
[1732406994838,0.32727863,97613.0,97612.0,0.9033465]
[1732406995059,0.32927863,97613.0,97612.0,0.49974334]
[1732406996142,0.32727863,97613.0,97612.0,0.49974334]
[1732406996615,0.32927863,97613.0,97612.0,0.49974334]
[1732406997060,0.32727863,97613.0,97612.0,0.49974334]
[1732406999092,0.32727863,97613.0,97612.0,0.9033465]
[1732406999303,0.32927863,97613.0,97612.0,0.9033465]
[1732406999564,0.14970624,97613.0,97612.0,0.9033465]
[1732407000064,0.0008584,97613.0,97612.0,0.52049731]
[1732407000512,0.01020048,97613.0,97612.0,0.52049731]
[1732407000729,0.0008584,97613.0,97612.0,0.52049731]
[1732407003355,0.0008584,97613.0,97612.0,0.52221391]
[1732407003816,0.0008584,97613.0,97612.0,0.06585674]
[1732407004029,0.0008584,97613.0,97612.0,0.61947041]
[1732407004282,0.0008584,97613.0,97612.0,0.6194419]
[1732407004514,0.0008584,97613.0,97612.0,0.21585674]
[1732407005391,0.0008584,97613.0,97612.0,0.61941731]
[1732407005630,0.0008584,97613.0,97612.0,0.21585674]
[1732407005864,0.0008584,97613.0,97612.0,0.46941736]
[1732407006091,0.0008584,97613.0,97612.0,0.61941736]
[1732407007234,0.0008584,97613.0,97612.0,0.06585674]
[1732407007470,0.0008584,97613.0,97612.0,0.46944037]
[1732407007686,0.0008584,97613.0,97612.0,0.21585674]
[1732407007923,0.0008584,97613.0,97612.0,0.31787101]
[1732407011022,0.0008586,97614.0,97612.0,0.31787101]
[1732407011233,0.0008586,97614.0,97613.0,0.2769393]
[1732407023304,0.0008586,97614.0,97613.0,0.29936691]
[1732407026059,0.0008586,97614.0,97613.0,0.30108331]
[1732407032455,0.0008586,97614.0,97613.0,0.79409914]
[1732407032901,0.0008586,97614.0,97613.0,0.30108331]
[1732407033783,0.0008582,97629.0,97618.0,0.02242761]
[1732407034025,0.0793,97634.0,97613.0,0.2786557]
[1732407034026,0.0793,97634.0,97628.0,0.30729749]
[1732407034254,0.0464589,97636.0,97628.0,0.30729749]
[1732407034255,0.0464589,97636.0,97629.0,0.25201427]
[1732407034524,0.0008589,97636.0,97629.0,0.58177832]
[1732407034765,0.0008589,97636.0,97631.0,0.15]
[1732407035007,0.0008589,97636.0,97635.0,0.30729749]
[1732407035253,0.0008589,97636.0,97635.0,0.55913166]
[1732407035486,0.0008589,97636.0,97635.0,0.25201427]
[1732407036465,0.0008589,97636.0,97635.0,0.55912242]
[1732407036934,0.0008589,97636.0,97635.0,0.29294589]
[1732407039805,0.0008589,97636.0,97635.0,0.31431217]
[1732407040975,0.0347945,97638.0,97636.0,0.15]
[1732407041205,0.0347945,97638.0,97637.0,0.25201427]
[1732407042297,0.1608945,97638.0,97637.0,0.25201427]
[1732407042539,0.16770574,97638.0,97637.0,0.25201427]
[1732407049156,0.04160574,97638.0,97637.0,0.25373027]
[1732407049381,0.04246374,97638.0,97637.0,0.25373027]
[1732407050979,0.00766924,97638.0,97637.0,0.25373027]
[1732407052782,0.00766924,97638.0,97637.0,0.27196676]
[1732407062498,0.127,97656.0,97651.0,0.15]
[1732407062717,0.127,97656.0,97653.0,0.15]
[1732407062934,0.127,97656.0,97655.0,0.15]
[1732407063193,0.127,97656.0,97655.0,0.25201427]
[1732407063678,0.0788,97656.0,97655.0,0.25201427]
[1732407064156,0.0019876,97665.0,97655.0,0.30037874]
[1732407064412,0.17757239,97686.0,97657.0,0.15]
[1732407064634,0.17757239,97687.0,97683.0,0.15]
[1732407065106,0.00127964,97686.0,97683.0,0.15]
[1732407066022,0.00127964,97686.0,97678.0,0.15]
[1732407066476,0.17757239,97686.0,97685.0,0.27273627]
[1732407066926,0.002,97684.0,97678.0,0.15]
[1732407067143,0.0765,97683.0,97678.0,0.15]
[1732407067363,0.0765,97681.0,97678.0,0.15]
[1732407067847,0.0765,97681.0,97677.0,0.19222737]
[1732407068063,0.0765,97681.0,97677.0,0.04222737]
[1732407068281,0.0765,97681.0,97675.0,0.15]
[1732407068510,0.0057031,97680.0,97675.0,0.15]
[1732407068960,0.0057031,97680.0,97675.0,0.5942894]
[1732407069227,0.0057031,97680.0,97675.0,0.19154791]
[1732407069698,0.0057031,97680.0,97675.0,0.04154791]
[1732407070168,0.0057031,97680.0,97676.0,0.15]
[1732407070419,0.0057031,97680.0,97675.0,0.15]
[1732407070649,0.0057031,97680.0,97677.0,0.15]
[1732407071531,0.0057031,97680.0,97675.0,0.15]
[1732407071758,0.0057031,97680.0,97674.0,0.15]
[1732407072191,0.0065618,97680.0,97674.0,0.15]
[1732407073093,0.1247,97679.0,97674.0,0.15]
[1732407073322,0.0777,97678.0,97674.0,0.55264462]
[1732407073542,0.08340309,97678.0,97674.0,0.15]
[1732407073764,0.049,97676.0,97674.0,0.15]
[1732407073989,0.30797545,97675.0,97674.0,0.55264462]
[1732407074238,0.18327545,97675.0,97671.0,0.04115395]
[1732407074464,0.0757,97673.0,97671.0,0.04115395]
[1732407074695,0.0757,97673.0,97665.0,0.15]
[1732407074914,0.00574251,97672.0,97665.0,0.14964053]
[1732407075366,0.00574251,97672.0,97664.0,0.04149346]
[1732407075842,0.00574251,97672.0,97660.0,0.5445266]
[1732407076055,0.00574251,97672.0,97665.0,0.10201427]
[1732407076283,0.00574251,97672.0,97670.0,0.30682505]
[1732407076525,0.0757,97673.0,97670.0,0.30682505]
[1732407076811,0.0757,97673.0,97670.0,0.01]
[1732407077523,0.0765587,97680.0,97670.0,0.01]
[1732407077747,0.0765587,97680.0,97670.0,0.1684677]
[1732407077974,0.00574258,97679.0,97671.0,0.15]
[1732407078879,0.00574258,97679.0,97672.0,0.02564963]
[1732407081290,0.0765587,97680.0,97672.0,0.02564963]
[1732407082007,0.0765587,97680.0,97674.0,0.15]
[1732407083147,0.0765587,97680.0,97672.0,0.30682505]
[1732407083368,0.0765587,97680.0,97673.0,0.15]
[1732407083587,0.0008587,97679.0,97673.0,0.15]
[1732407084045,0.00587734,97678.0,97673.0,0.15]
[1732407084299,0.00587734,97678.0,97671.0,0.15]
[1732407084757,0.0238587,97679.0,97673.0,0.15]
[1732407085444,0.0238587,97679.0,97673.0,0.16050186]
[1732407085658,0.0008587,97679.0,97675.0,0.15]
[1732407085892,0.0008587,97679.0,97676.0,0.10201427]
[1732407086111,0.0008587,97679.0,97677.0,0.15]
[1732407086334,0.0008587,97679.0,97678.0,0.10201427]
[1732407086555,0.0008587,97679.0,97678.0,0.25201427]
[1732407089000,0.00674775,97679.0,97678.0,0.25201427]
[1732407089220,0.00674775,97679.0,97678.0,0.55856422]
[1732407089442,0.0008587,97679.0,97678.0,0.55852725]
[1732407089685,0.0008587,97679.0,97678.0,0.55851792]
[1732407090601,0.0008587,97679.0,97678.0,0.25201427]
[1732407090819,0.0008587,97679.0,97678.0,0.55851792]
[1732407091343,0.0008587,97679.0,97678.0,0.55850563]
[1732407091580,0.0008587,97679.0,97678.0,0.55848822]
[1732407091798,0.0783587,97679.0,97678.0,0.25201427]
[1732407092242,0.0783587,97679.0,97678.0,0.55848822]
[1732407092243,0.08424775,97679.0,97678.0,0.55848822]
[1732407092472,0.08424775,97679.0,97678.0,0.25201427]
[1732407101088,0.08424775,97679.0,97678.0,0.15]
[1732407101347,0.13124775,97679.0,97678.0,0.15]
[1732407101582,0.13124775,97679.0,97675.0,0.00174357]
[1732407101583,0.17757239,97677.0,97675.0,0.00174357]
[1732407101831,0.30727239,97672.0,97670.0,0.35756335]
[1732407102049,0.30727239,97671.0,97670.0,0.0510456]
[1732407102303,0.2008584,97696.0,97670.0,0.0510456]
[1732407102304,0.11112483,97748.0,97720.0,0.5478]
[1732407102534,0.0827,97779.0,97747.0,0.2]
[1732407102535,0.09150704,97779.0,97747.0,0.2]
[1732407102756,0.00127882,97759.0,97740.0,0.2]
[1732407102986,0.0827,97758.0,97742.0,0.27269198]
[1732407103243,0.00127888,97757.0,97741.0,0.03258361]
[1732407103470,0.00127888,97757.0,97741.0,0.2]
[1732407104647,0.00127888,97757.0,97741.0,0.202]
[1732407104869,0.00127888,97757.0,97741.0,0.2]
[1732407106040,0.00127888,97757.0,97741.0,0.202]
[1732407107952,0.00213738,97757.0,97741.0,0.202]
[1732407112103,0.0827,97751.0,97719.0,0.15]
[1732407112350,0.023,97748.0,97721.0,0.35]
[1732407112604,0.023,97746.0,97730.0,0.12023716]
[1732407112831,0.023,97744.0,97725.0,0.002]
[1732407113052,0.10329341,97743.0,97725.0,0.002]
[1732407113292,0.0825,97742.0,97725.0,0.002]
[1732407113505,0.18028576,97742.0,97725.0,0.002]
[1732407113723,0.18028576,97742.0,97723.0,0.15]
[1732407114648,0.18028576,97742.0,97722.0,0.15]
[1732407114836,0.18028576,97742.0,97721.0,0.35]
[1732407115153,0.0487,97741.0,97721.0,0.35]
[1732407115393,0.00077149,97740.0,97721.0,0.35]
[1732407115845,0.00077149,97740.0,97725.0,0.002]
[1732407116067,0.00077149,97740.0,97721.0,0.35]
[1732407116316,0.00077149,97740.0,97725.0,0.002]
[1732407117442,0.00077149,97740.0,97721.0,0.35]
[1732407119371,0.00077149,97740.0,97721.0,0.3517158]
[1732407119816,0.18451427,97739.0,97721.0,0.0017158]
[1732407120100,0.08327149,97738.0,97721.0,0.0017158]
[1732407120332,0.10201427,97737.0,97721.0,0.0017158]
[1732407120569,0.08327149,97736.0,97721.0,0.0017158]
[1732407120869,0.023,97734.0,97721.0,0.0017158]
[1732407121077,0.10278576,97733.0,97721.0,0.0017158]
[1732407121298,0.0825,97732.0,97721.0,0.0017158]
[1732407121543,0.10278576,97731.0,97721.0,0.0017158]
[1732407121772,0.023,97730.0,97721.0,0.0017158]
[1732407122009,0.023,97728.0,97721.0,0.0017158]
[1732407122229,0.04085154,97746.0,97721.0,0.0017158]
[1732407122230,0.023,97726.0,97721.0,0.0017158]
[1732407122455,0.023,97724.0,97721.0,0.0017158]
[1732407122699,0.18528576,97723.0,97721.0,0.0017158]
[1732407122958,0.0825,97722.0,97721.0,0.0017158]
[1732407123180,0.18528576,97722.0,97721.0,0.0017158]
[1732407125026,0.18528576,97722.0,97721.0,0.00135646]
[1732407126824,0.18028576,97722.0,97721.0,0.00135646]
[1732407127868,0.20328576,97722.0,97721.0,0.00135646]
[1732407128124,0.25198576,97722.0,97721.0,0.00135646]
[1732407128382,0.25121427,97722.0,97721.0,0.00135646]
[1732407134469,0.25121427,97722.0,97690.0,0.27196084]
[1732407134652,0.1284,97715.0,97689.0,0.04246902]
[1732407134893,0.023,97712.0,97686.0,0.27200091]
[1732407135163,0.0811,97707.0,97682.0,0.15]
[1732407135403,0.023,97704.0,97682.0,0.15]
[1732407135665,0.10266776,97703.0,97682.0,0.15]
[1732407135906,0.00077149,97703.0,97690.0,0.12023716]
[1732407136423,0.00077149,97703.0,97694.0,0.002]
[1732407136642,0.00066233,97703.0,97694.0,0.002]
[1732407136876,0.00066233,97703.0,97691.0,0.002]
[1732407137584,0.18274956,97704.0,97691.0,0.002]
[1732407137820,0.18274956,97704.0,97690.0,0.12023716]
[1732407138344,0.18274956,97704.0,97694.0,0.002]
[1732407138592,0.18274956,97704.0,97690.0,0.12023716]
[1732407138593,0.18274956,97704.0,97690.0,0.002]
[1732407138825,0.18274956,97704.0,97689.0,0.002]
[1732407139301,0.18274956,97704.0,97690.0,0.002]
[1732407139522,0.18274956,97704.0,97690.0,0.12023716]
[1732407140419,0.18274956,97704.0,97698.0,0.002]
[1732407141613,0.18274956,97704.0,97684.0,0.02217621]
[1732407141893,0.18274956,97704.0,97690.0,0.12023716]
[1732407142340,0.18274956,97704.0,97698.0,1.0]
[1732407144201,0.18360776,97704.0,97698.0,1.0]
[1732407147082,0.08159349,97704.0,97699.0,0.00498542]
[1732407148773,0.08159349,97704.0,97699.0,0.0457226]
[1732407149032,0.08159349,97704.0,97698.0,1.0]
[1732407156452,0.08159349,97704.0,97699.0,0.27207104]
[1732407157427,0.08159349,97704.0,97700.0,0.27207104]
[1732407158392,0.08159349,97704.0,97698.0,1.0]
[1732407158393,0.08159349,97704.0,97701.0,0.27207104]
[1732407158630,0.08159349,97704.0,97700.0,0.27207104]
[1732407159538,0.08157968,97704.0,97699.0,0.27207104]
[1732407159767,0.08157968,97704.0,97701.0,0.27207104]
[1732407160251,0.08157968,97704.0,97702.0,0.27207104]
[1732407160464,0.08157968,97704.0,97698.0,1.0]
[1732407160465,0.08157968,97704.0,97703.0,0.27207104]
[1732407161461,0.08157968,97704.0,97698.0,1.0]
[1732407161907,0.08157968,97704.0,97703.0,0.27255783]
[1732407162129,0.08157968,97704.0,97698.0,1.0]
[1732407163077,0.0792,97702.0,97698.0,1.0]
[1732407163331,0.0792,97702.0,97701.0,0.27266722]
[1732407163524,0.0792,97702.0,97698.0,1.0]
[1732407164441,0.18121427,97702.0,97698.0,1.0]
[1732407164732,0.0792,97701.0,97698.0,1.0]
[1732407165433,0.0792,97701.0,97700.0,0.40194466]
[1732407165677,0.18121427,97701.0,97700.0,0.40194466]
[1732407165958,0.20421427,97701.0,97700.0,0.40194466]
[1732407166673,0.023,97700.0,97699.0,0.40194466]
[1732407166914,0.12501427,97700.0,97698.0,0.68286682]
[1732407167129,0.12501427,97699.0,97698.0,0.68286682]
[1732407167640,0.20711427,97699.0,97698.0,0.68286682]
[1732407179774,0.20711427,97699.0,97698.0,0.68458342]
[1732407186683,0.25311427,97699.0,97698.0,0.68458342]
[1732407189448,0.2868378,97699.0,97698.0,0.68458342]
[1732407190107,0.2868378,97699.0,97698.0,0.62458342]
[1732407193036,0.2876961,97699.0,97698.0,0.57761766]
[1732407193270,0.2896961,97699.0,97698.0,0.57761766]
[1732407193495,0.2896961,97699.0,97698.0,0.41059615]
[1732407198515,0.2896961,97699.0,97698.0,0.37990605]
[1732407198756,0.2896961,97699.0,97698.0,0.36209795]
[1732407200407,0.4396961,97699.0,97698.0,0.04394375]
[1732407200632,0.1314,97685.0,97684.0,0.0017168]
[1732407200897,0.23341427,97685.0,97684.0,0.0017168]
[1732407202289,0.25641427,97685.0,97684.0,0.0017168]
[1732407203058,0.25441427,97685.0,97684.0,0.0017168]
[1732407208419,0.28797672,97685.0,97684.0,0.0017168]
[1732407223725,0.12501427,97685.0,97684.0,0.0017168]
[1732407223953,0.10201427,97685.0,97684.0,0.0017168]
[1732407224393,0.10201427,97685.0,97684.0,0.0819168]
[1732407225337,0.12501427,97685.0,97684.0,0.0819168]
[1732407232939,0.12501427,97685.0,97684.0,0.0017168]
[1732407238696,0.12437685,97685.0,97684.0,0.0017168]
[1732407244503,0.023,97684.0,97674.0,0.03284021]
[1732407244713,0.10201427,97683.0,97674.0,0.03284021]
[1732407244933,0.023,97682.0,97673.0,0.0818]
[1732407245137,0.10201427,97681.0,97673.0,0.0818]
[1732407245354,0.023,97680.0,97673.0,0.1149256]
[1732407245604,0.10201427,97679.0,97673.0,0.1149256]
[1732407245850,0.023,97678.0,97673.0,0.1149256]
[1732407246069,0.023,97676.0,97673.0,0.1149256]
[1732407246287,0.023,97674.0,97673.0,0.1149256]
[1732407250916,0.023,97674.0,97673.0,0.1157845]
[1732407257088,0.02063249,97674.0,97673.0,0.1157845]
[1732407257579,0.02063249,97674.0,97673.0,0.0008589]
[1732407259030,0.12264676,97674.0,97673.0,0.0008589]
[1732407259262,0.24724676,97674.0,97673.0,0.0008589]
[1732407259987,0.24724676,97674.0,97673.0,0.27382732]
[1732407260935,0.24724676,97674.0,97673.0,0.0008589]
[1732407264043,0.24896476,97674.0,97673.0,0.0008589]
[1732407265644,0.24896476,97674.0,97673.0,0.27382732]
[1732407265901,0.12436476,97674.0,97673.0,0.27382732]
[1732407267025,0.12436476,97674.0,97673.0,0.0008589]
[1732407275162,0.12436476,97674.0,97673.0,0.01305248]
[1732407276766,0.12436476,97674.0,97673.0,0.0008589]
[1732407280073,0.12436476,97674.0,97673.0,0.40443909]
[1732407280281,0.12436476,97674.0,97673.0,0.0008589]
[1732407287761,0.12336476,97674.0,97673.0,0.0008589]
[1732407296411,0.12336476,97674.0,97665.0,0.001717]
[1732407296619,0.023,97672.0,97665.0,0.001717]
[1732407296828,0.023,97670.0,97665.0,0.001717]
[1732407297023,0.10201427,97669.0,97665.0,0.001717]
[1732407297193,0.023,97668.0,97665.0,0.001717]
[1732407297432,0.10201427,97667.0,97665.0,0.001717]
[1732407297640,0.023,97666.0,97665.0,0.001717]
[1732407297854,0.12501427,97666.0,97665.0,0.001717]
[1732407304660,0.25371427,97666.0,97665.0,0.27514369]
[1732407304884,0.25371427,97666.0,97665.0,0.001717]
[1732407316909,0.25371427,97666.0,97640.0,0.05820953]
[1732407317142,0.10201427,97662.0,97640.0,0.05820953]
[1732407317378,0.023,97661.0,97640.0,0.05820953]
[1732407317589,0.023,97659.0,97640.0,0.05820953]
[1732407317802,0.023,97657.0,97640.0,0.05820953]
[1732407318023,0.023,97655.0,97640.0,0.05820953]
[1732407318243,0.023,97653.0,97640.0,0.05820953]
[1732407318463,0.10201427,97652.0,97640.0,0.05820953]
[1732407318914,0.023,97651.0,97640.0,0.05820953]
[1732407319133,0.023,97649.0,97640.0,0.05820953]
[1732407319355,0.023,97647.0,97640.0,0.05820953]
[1732407319582,0.10201427,97646.0,97640.0,0.05820953]
[1732407319873,0.023,97645.0,97640.0,0.05820953]
[1732407320099,0.10201427,97644.0,97640.0,0.05820953]
[1732407320379,0.023,97643.0,97640.0,0.0495]
[1732407320573,0.10201427,97642.0,97640.0,0.0495]
[1732407320829,0.023,97641.0,97640.0,0.0495]
[1732407322901,0.023,97641.0,97640.0,0.0503591]
[1732407326449,0.0017182,97670.0,97642.0,0.2]
[1732407326688,0.10201427,97669.0,97660.0,0.07897515]
[1732407327356,0.10201427,97669.0,97652.0,0.0495]
[1732407327600,0.10201427,97669.0,97653.0,0.233]
[1732407328075,0.10201427,97669.0,97659.0,0.07897515]
[1732407328690,0.023,97668.0,97659.0,0.07897515]
[1732407328957,0.10201427,97667.0,97659.0,0.07897515]
[1732407329174,0.023,97666.0,97659.0,0.07897515]
[1732407329400,0.023,97664.0,97659.0,0.07897515]
[1732407329617,0.023,97666.0,97660.0,0.02704513]
[1732407329823,0.0017182,97670.0,97661.0,0.1325]
[1732407330310,0.0017182,97670.0,97668.0,0.083]
[1732407330763,0.0017182,97670.0,97669.0,0.02704513]
[1732407330976,0.0017182,97670.0,97669.0,0.17704513]
[1732407331402,0.0017182,97670.0,97669.0,0.62756893]
[1732407331622,0.0017182,97670.0,97669.0,0.70954513]
[1732407333794,0.0017182,97670.0,97669.0,0.8115594]
[1732407336768,0.0017182,97670.0,97669.0,0.8443851]
[1732407336979,0.0017182,97670.0,97669.0,0.7153257]
[1732407337443,0.0017182,97670.0,97669.0,0.74455303]
[1732407340177,0.0017182,97670.0,97669.0,0.8465673]
[1732407341444,0.0017182,97670.0,97669.0,1.0465673]
[1732407341980,0.0017182,97670.0,97669.0,0.8465673]
[1732407343183,0.0017182,97670.0,97669.0,0.8485673]
[1732407344092,0.001718,97674.0,97673.0,0.6737]
[1732407344314,0.001718,97674.0,97673.0,0.91201427]
[1732407344544,0.001718,97674.0,97673.0,0.93608607]
[1732407344756,0.001718,97674.0,97673.0,1.13608607]
[1732407345283,0.00079458,97674.0,97673.0,1.13608607]
[1732407345692,0.00079458,97674.0,97673.0,1.53661077]
[1732407346114,0.00079458,97674.0,97673.0,1.13608607]
[1732407346596,0.00079458,97674.0,97673.0,1.69748607]
[1732407348118,0.00079458,97674.0,97673.0,2.09801077]
[1732407348356,0.00079458,97674.0,97673.0,1.69948607]
[1732407348611,0.00079458,97674.0,97673.0,1.89948607]
[1732407348832,0.00079458,97674.0,97673.0,2.30001077]
[1732407349054,0.00079458,97674.0,97673.0,1.89948607]
[1732407349513,0.00079458,97674.0,97673.0,2.30290207]
[1732407349952,0.00079458,97674.0,97673.0,2.50660207]
[1732407351101,0.0008583,97699.0,97684.0,0.6737]
[1732407351314,0.0008583,97699.0,97684.0,0.79927389]
[1732407352637,0.0008583,97699.0,97684.0,0.99927389]